[Event "German Bundesliga 2023-24"]
[Site "Germany"]
[Date "2024.02.04"]
[Round "7"]
[White "Zysk, Robert"]
[Black "Braun, Arik"]
[Result "0-1"]
[ECO "E11"]
[WhiteElo "2388"]
[BlackElo "2588"]
[Annotator "ChessBase"]
[PlyCount "104"]
[EventDate "2023.10.20"]
[EventType "team-tourn"]
[EventCountry "GER"]
[SourceTitle "playchess.com"]
[Source "ChessBase"]
[SourceQuality "1"]
[TimeControl "40/6000+30:3000+30"]

1. d4 {[%emt 0:00:03]} Nf6 {[%emt 0:00:10]} 2. c4 {[%emt 0:00:23]} e6 {[%emt 0:00:10]} 3. Nf3 {[%emt 0:00:13]} Bb4+ {[%emt 0:00:29]} 4. Bd2 {[%emt 0:04:30]} c5 {[%emt 0:00:11]} 5. Bxb4 {[%emt 0:00:54]} cxb4 {[%emt 0:00:03]} 6. a3 {[%emt 0:00:22]} bxa3 {[%emt 0:02:07]} 7. Rxa3 {[%emt 0:03:37]} b6 {[%emt 0:03:55]} 8. e3 {[%emt 0:09:29]} Bb7 {[%emt 0:01:33]} 9. Be2 {[%emt 0:01:57]} a5 {[%emt 0:03:43]} 10. O-O {[%emt 0:01:44]} O-O {[%emt 0:00:56]} 11. Nc3 {[%emt 0:03:15]} Na6 {[%emt 0:02:11]} 12. Nd2 {[%emt 0:07:37]} d6 {[%emt 0:04:26]} 13. Bf3 {[%emt 0:00:48]} Qe7 {[%emt 0:02:41]} 14. Bxb7 Qxb7 15. e4 {[%emt 0:14:19]} Rfd8 {[%emt 0:15:59]} 16. d5 {[%emt 0:03:47]} Nc5 {[%emt 0:10:26]} 17. Qb1 {[%emt 0:04:08]} e5 {[%emt 0:13:04]} 18. Nb5 {[%emt 0:04:11]} Ne8 {[%emt 0:01:23]} 19. Qc2 {[%emt 0:15:37]} Nc7 {[%emt 0:02:28]} 20. Nxc7 {[%emt 0:00:47]} Qxc7 {[%emt 0:00:04]} 21. Nb1 {[%emt 0:00:20]} Na6 {[%emt 0:02:33]} 22. Rc3 {[%emt 0:00:55]} Rdc8 {[%emt 0:01:49]} 23. Na3 {[%emt 0:03:11]} Qd7 {[%emt 0:01:23]} 24. Qe2 {[%emt 0:01:06]} Rf8 {[%emt 0:03:16]} 25. Nb5 {[%emt 0:05:07]} Nc5 {[%emt 0:02:35]} 26. h3 {[%emt 0:03:18]} f5 {[%emt 0:03:18]} 27. exf5 {[%emt 0:00:27]} Rxf5 {[%emt 0:00:09]} 28. Rf3 {[%emt 0:01:03]} Rxf3 {[%emt 0:01:29]} 29. Qxf3 {[%emt 0:00:11]} Rf8 {[%emt 0:00:11]} 30. Qg4 {[%emt 0:08:15]} Qd8 {[%emt 0:00:26]} 31. g3 {[%emt 0:03:22]} e4 {[%emt 0:07:44]} 32. Nc3 {[%emt 0:08:50]} Qe7 {[%emt 0:01:35]} 33. Qe2 {[%emt 0:01:26]} Qe5 {[%emt 0:02:22]} 34. Kg2 {[%emt 0:00:43]} a4 {[%emt 0:03:12]} 35. f4 {[%emt 0:00:40]} exf3+ {[%emt 0:02:46]} 36. Rxf3 {[%emt 0:00:06]} Qxe2+ {[%emt 0:00:28]} 37. Nxe2 {[%emt 0:00:03]} Rxf3 {[%emt 0:00:36]} 38. Kxf3 {[%emt 0:00:05]} Nd3 {[%emt 0:00:16]} 39. Ke3 {[%emt 0:02:11]} Nxb2 {[%emt 0:00:23]} 40. Kd4 {[%emt 0:00:12]} a3 {[%emt 0:01:18]} 41. Nc1 {[%emt 0:51:04]} Kf7 {[%emt 0:51:33]} 42. Kc3 {[%emt 0:00:00]} Kf6 {[%emt 0:00:00]} 43. Nb3 {[%emt 0:00:00]} Ke5 {[%emt 0:00:00]} 44. Nd2 {[%emt 0:00:00]} h6 {[%emt 0:00:00]} 45. h4 {[%emt 0:00:00]} h5 {[%emt 0:00:00]} 46. Kb3 {[%emt 0:00:00]} Kd4 {[%emt 0:00:00]} 47. Nf3+ {[%emt 0:00:00]} Ke3 {[%emt 0:00:00]} 48. Ne1 {[%emt 0:00:00]} Kf2 {[%emt 0:00:00]} 49. Nc2 {[%emt 0:00:00]} Kxg3 {[%emt 0:00:00]} 50. Nxa3 {[%emt 0:00:49]} Nd3 {[%emt 0:00:00]} 51. Kc3 {[%emt 0:00:45]} Nc5 {[%emt 0:00:00]} 52. Nb5 {[%emt 0:00:14]} Nb7 {[%emt 0:00:00]} 0-1

[Event "German Bundesliga 2023-24"]
[Site "Germany"]
[Date "2024.02.03"]
[Round "7.1"]
[White "Vitiugov, Nikita"]
[Black "Nisipeanu, Liviu-Dieter"]
[Result "1-0"]
[ECO "B12"]
[WhiteElo "2686"]
[BlackElo "2600"]
[Annotator "ChessBase"]
[PlyCount "61"]
[EventDate "2023.10.20"]
[EventType "team-tourn"]
[EventCountry "GER"]
[SourceTitle "playchess.com"]
[Source "ChessBase"]
[SourceQuality "1"]
[TimeControl "40/6000+30:3000+30"]

1. e4 {[%emt 1:41:00]} c6 {[%emt 1:41:00]} 2. d4 {[%emt 0:00:30]} d5 {[%emt 0:00:30]} 3. f3 {[%emt 0:00:30]} e6 {[%emt 0:00:30]} 4. Nc3 {[%emt 0:00:30]} Bb4 {[%emt 0:00:30]} 5. Bd2 {[%emt 0:00:30]} Ne7 {[%emt 0:00:30]} 6. a3 {[%emt 0:00:30]} Bxc3 {[%emt 0:00:30]} 7. Bxc3 {[%emt 0:00:30]} b6 {[%emt 0:00:30]} 8. Qd2 {[%emt 0:00:30]} O-O {[%emt 0:00:30]} 9. Qf4 {[%emt 0:00:30]} dxe4 {[%emt 0:00:30]} 10. fxe4 {[%emt 0:00:30]} f5 {[%emt 0:00:30]} 11. Qe3 {[%emt 0:00:30]} Ba6 {[%emt 0:00:30]} 12. Bxa6 {[%emt 0:00:30]} Nxa6 {[%emt 0:00:30]} 13. Nf3 {[%emt 0:00:30]} fxe4 {[%emt 0:00:30]} 14. Qxe4 {[%emt 0:00:30]} Qd5 {[%emt 0:00:30]} 15. Qd3 {[%emt 0:00:30]} b5 {[%emt 0:00:30]} 16. O-O {[%emt 0:00:30]} Ng6 {[%emt 0:00:30]} 17. Rae1 {[%emt 0:00:30]} Rf6 {[%emt 0:00:30]} 18. Bd2 {[%emt 0:00:30]} Raf8 {[%emt 0:00:30]} 19. b3 {[%emt 0:00:30]} Nc7 {[%emt 0:00:30]} 20. c4 {[%emt 0:00:30]} bxc4 {[%emt 0:00:30]} 21. bxc4 {[%emt 0:00:30]} Qd7 {[%emt 0:00:30]} 22. Bb4 {[%emt 0:00:30]} R8f7 {[%emt 0:00:30]} 23. Qe3 {[%emt 0:00:30]} h6 {[%emt 0:00:30]} 24. Rf2 {[%emt 0:00:30]} Na8 {[%emt 0:00:30]} 25. Ref1 {[%emt 0:00:30]} Rxf3 {[%emt 0:00:30]} 26. gxf3 {[%emt 0:00:30]} Nh4 {[%emt 0:00:30]} 27. Re1 {[%emt 0:00:30]} Nb6 {[%emt 0:00:30]} 28. Qe4 {[%emt 0:00:30]} g5 {[%emt 0:00:30]} 29. Qg4 {[%emt 0:00:30]} Nxc4 {[%emt 0:00:30]} 30. Qxe6 {[%emt 0:00:30]} Qxd4 {[%emt 0:00:30]} 31. Qxh6 {[%emt 0:00:30]} 1-0

[Event "German Bundesliga 2023-24"]
[Site "Germany"]
[Date "2024.02.03"]
[Round "7.1"]
[White "Cheparinov, Ivan"]
[Black "Harikrishna, Pentala"]
[Result "1-0"]
[ECO "C67"]
[WhiteElo "2649"]
[BlackElo "2716"]
[Annotator "TA"]
[PlyCount "99"]
[EventDate "2023.10.20"]
[EventType "team-tourn"]
[EventCountry "GER"]
[SourceTitle "playchess.com"]
[Source "ChessBase"]
[SourceQuality "1"]
[TimeControl "40/6000+30:3000+30"]

{[%evp 34,99,29,13,8,28,70,59,161,166,176,173,174,175,172,152,145,134,149,136,152,135,204,187,237,246,241,190,180,193,179,179,188,187,186,186,189,179,377,333,391,372,390,387,387,389,370,366,410,407,498,504,505,511,505,496,937,912,930,717,1095,1091,1222,1205,29966,29959,29977,29978]} 1. e4 {[%emt 0:00:04]} e5 {[%emt 0:00:07]} 2. Nf3 {[%emt 0:00:05]} Nc6 {[%emt 0:00:06]} 3. Bb5 {[%emt 0:00:06]} Nf6 {[%emt 0:00:35]} 4. O-O {[%emt 0:01:05]} Nxe4 {[%emt 0:00:19]} 5. d4 {[%emt 0:00:06]} Nd6 {[%emt 0:00:19]} 6. Bxc6 {[%emt 0:00:05]} dxc6 {[%emt 0:00:56]} 7. dxe5 {[%emt 0:00:05]} Nf5 {[%emt 0:00:07]} 8. Qxd8+ {[%emt 0:00:03]} Kxd8 {[%emt 0:00:09]} 9. Nc3 {[%emt 0:00:03]} Ne7 {[%emt 0:01:58]} 10. h3 {[%emt 0:00:08]} h6 {[%emt 0:04:37] C67: Ruy Lopez: Berlin Defence: 4 0-0 Nxe4.} 11. Bf4 {[%emt 0:00:19]} Ng6 {[%emt 0:01:32]} 12. Rad1+ {[%emt 0:00:16]} Ke8 {[%emt 0:01:24]} 13. Bg3 {[%emt 0:00:32]} Bb4 {[%emt 0:02:15]} 14. Nd4 {[%emt 0:09:59]} Bxc3 {[%emt 0:17:31]} 15. bxc3 {[%emt 0:00:07]} Be6 {[%emt 0:03:06]} 16. f4 {[%emt 0:05:33]} Bxa2 $146 {[%emt 0:13:20]} ({Predecessor:} 16... Bc4 17. Rf2 Ne7 18. f5 Nd5 19. f6 gxf6 20. exf6 Kf8 21. Nf5 Re8 22. Rd4 b5 {½-½ Kotronias,V (2602)-Aronian,L (2750) Bundesliga 0708 2007 (1.1)}) 17. e6 {[%emt 0:12:31]} Ne7 {[%emt 0:06:47]} (17... Bxe6 $6 18. f5 Bc4 19. fxg6 Bxf1 20. gxf7+ $18 (20. Rxf1 fxg6 21. Bxc7 $14)) 18. f5 {[%emt 0:12:03]} Bc4 {[%emt 0:08:14]} 19. Rfe1 {[%emt 0:16:12]} Nd5 {[%emt 0:10:13]} 20. Nf3 {[%emt 0:04:53]} f6 {[%emt 0:03:21]} (20... b5 $1 $14) 21. Nd2 $18 {[%emt 0:03:31]} b5 {[%emt 0:08:11]} 22. Nxc4 {[%emt 0:04:28]} bxc4 {[%emt 0:02:07]} 23. Rd4 {[%emt 0:00:07]} g6 {[%emt 0:03:48]} 24. Rxc4 {[%emt 0:05:30]} gxf5 {[%emt 0:00:45]} 25. Rxc6 {[%emt 0:00:17]} Rg8 {[%emt 0:02:21]} 26. Bf2 {[%emt 0:10:01]} (26. Bxc7 Rc8 27. Rb1 Nxc7 $17) 26... Rg7 {[%emt 0:03:52]} 27. Bd4 {[%emt 0:06:37]} f4 {[%emt 0:03:14]} (27... Nf4 $16 {was necessary.}) 28. Kf2 $18 {[%emt 0:04:28]} a5 {[%emt 0:04:06] [#]} (28... Rg6 {was worth a try.} 29. Rb1 Kd8) 29. Rb1 $1 $18 {[%emt 0:04:51]} a4 {[%emt 0:02:58]} 30. c4 {[%emt 0:00:01]} Ne7 {[%emt 0:02:08]} 31. Rxc7 {[%emt 0:05:14]} Nf5 {[%emt 0:00:15]} 32. Rxg7 {[%emt 0:00:03]} (32. Bxf6 $2 Rxc7 33. Kf3 a3 (33... Rxc4 $2 34. Rb7 $19) 34. Kxf4 a2 $19 (34... Rxc4+ $2 35. Kxf5 Rxc2 36. g4 $19)) 32... Nxg7 {[%emt 0:00:07]} 33. Rb6 {[%emt 0:02:46]} ({Don't do} 33. Bxf6 $6 Nxe6 34. Rb7 Ra6 $14) 33... a3 {[%emt 0:00:44]} 34. Bxf6 {[%emt 0:00:03]} Nh5 {[%emt 0:00:06]} 35. Ba1 {[%emt 0:01:58]} Rc8 $2 {[%emt 0:00:44]} (35... Ke7 36. Kf3 a2) 36. Kf3 $18 {[%emt 0:03:05]} Ke7 {[%emt 0:03:25]} 37. Rb5 {[%emt 0:00:14]} Ng3 {[%emt 0:00:07]} 38. Kxf4 {[%emt 0:00:29]} Rg8 {[%emt 0:00:43]} 39. Ra5 {[%emt 0:00:37]} Kxe6 {[%emt 0:00:39]} 40. Ra6+ {[%emt 0:00:29]} (40. Rxa3 Ne2+ 41. Ke4 Rxg2 42. Ra6+ Ke7 43. Rxh6 Ng3+ 44. Kf3 Rxc2 45. Kxg3 Rxc4 $18) 40... Kd7 {[%emt 0:00:57]} 41. Rxh6 {[%emt 0:10:37]} ({Weaker is} 41. Rxa3 Ne2+ 42. Ke4 Rxg2 43. Ra7+ Kc6 $18) 41... Nf1 {[%emt 0:03:25]} 42. g4 {[%emt 0:05:26]} Rc8 {[%emt 0:00:21]} 43. Ra6 {[%emt 0:02:09]} Rxc4+ {[%emt 0:00:09]} 44. Kg5 {[%emt 0:00:05]} Rxc2 {[%emt 0:01:03]} (44... a2 $142 45. Rxa2 Ne3) 45. Rxa3 $18 {[%emt 0:00:11]} Nd2 {[%emt 0:00:29]} 46. Kh5 {[%emt 0:01:09]} Ne4 {[%emt 0:00:50]} 47. g5 {[%emt 0:00:23]} Rc5 {[%emt 0:01:59]} 48. h4 {[%emt 0:01:49]} Ke6 {[%emt 0:00:21]} 49. Re3 {[%emt 0:00:15]} Kf5 {[%emt 0:00:44]} 50. Rxe4 {[%emt 0:00:18]} 1-0

[Event "German Bundesliga 2023-24"]
[Site "Germany"]
[Date "2024.02.04"]
[Round "7.1"]
[White "Parligras, Mircea-Emilian"]
[Black "Kadric, Denis"]
[Result "1-0"]
[ECO "B07"]
[WhiteElo "2561"]
[BlackElo "2579"]
[Annotator "ChessBase"]
[PlyCount "109"]
[EventDate "2023.10.20"]
[EventType "team-tourn"]
[EventCountry "GER"]
[SourceTitle "playchess.com"]
[Source "ChessBase"]
[SourceQuality "1"]
[TimeControl "40/6000+30:3000+30"]

1. d4 {[%emt 0:00:04]} d6 {[%emt 0:00:05]} 2. e4 {[%emt 0:00:22]} Nf6 {[%emt 0:00:03]} 3. Bd3 {[%emt 0:00:13]} e5 {[%emt 0:01:18]} 4. c3 {[%emt 0:00:11]} Nbd7 {[%emt 0:00:47]} 5. Nf3 {[%emt 0:01:40]} d5 {[%emt 0:00:54]} 6. Nxe5 {[%emt 0:13:04]} dxe4 {[%emt 0:00:40]} 7. Be2 {[%emt 0:05:45]} Nxe5 {[%emt 0:07:36]} 8. dxe5 {[%emt 0:00:05]} Qxd1+ {[%emt 0:00:05]} 9. Bxd1 {[%emt 0:00:15]} Ng4 {[%emt 0:02:21]} 10. Bf4 {[%emt 0:07:32]} Bc5 {[%emt 0:01:42]} 11. Bxg4 {[%emt 0:00:13]} Bxg4 {[%emt 0:00:04]} 12. Nd2 {[%emt 0:00:14]} e3 {[%emt 0:06:41]} 13. fxe3 {[%emt 0:03:01]} O-O-O {[%emt 0:00:29]} 14. h3 {[%emt 0:06:58]} Bh5 {[%emt 0:02:46]} 15. Nf3 {[%emt 0:12:50]} h6 {[%emt 0:02:56]} 16. g4 {[%emt 0:06:03]} Bg6 {[%emt 0:01:40]} 17. Kf2 {[%emt 0:02:19]} Be4 {[%emt 0:03:32]} 18. Rhd1 {[%emt 0:01:38]} g5 {[%emt 0:10:53]} 19. Bg3 {[%emt 0:00:40]} Rdf8 {[%emt 0:01:00]} 20. Ke2 {[%emt 0:10:55]} Be7 {[%emt 0:11:23]} 21. Rg1 {[%emt 0:06:55]} h5 {[%emt 0:08:09]} 22. Nd4 {[%emt 0:00:27]} hxg4 {[%emt 0:04:01]} 23. hxg4 {[%emt 0:00:06]} Rd8 {[%emt 0:21:28]} 24. Rad1 {[%emt 0:00:37]} Rh3 {[%emt 0:04:13]} 25. Kf2 {[%emt 0:05:26]} Bc5 {[%emt 0:01:31]} 26. Nf5 {[%emt 0:03:09]} Re8 {[%emt 0:02:41]} 27. b4 {[%emt 0:02:07]} Bb6 {[%emt 0:01:26]} 28. c4 {[%emt 0:01:36]} a5 {[%emt 0:00:37]} 29. a3 {[%emt 0:01:16]} Ba7 {[%emt 0:01:58]} 30. Ng7 {[%emt 0:10:06]} Re7 {[%emt 0:04:48]} 31. c5 {[%emt 0:02:21]} Rh8 {[%emt 0:02:34]} 32. Nf5 {[%emt 0:01:10]} Ree8 {[%emt 0:01:57]} 33. Rd4 {[%emt 0:01:57]} Bc6 {[%emt 0:00:27]} 34. Rc1 {[%emt 0:00:11]} Bd7 {[%emt 0:00:54]} 35. Rd2 {[%emt 0:02:48]} Bb8 {[%emt 0:00:45]} 36. Rcd1 {[%emt 0:03:03]} Bxf5 {[%emt 0:01:03]} 37. gxf5 {[%emt 0:00:01]} c6 {[%emt 0:00:02]} 38. Rd7 {[%emt 0:01:28]} Rhf8 {[%emt 0:01:30]} 39. bxa5 {[%emt 0:00:35]} Bxe5 {[%emt 0:00:28]} 40. a6 {[%emt 0:00:29]} Bxg3+ {[%emt 0:01:16]} 41. Kxg3 {[%emt 0:50:03]} Rxe3+ {[%emt 0:51:30]} 42. Kg4 {[%emt 0:00:00]} f6 {[%emt 0:00:00]} 43. axb7+ {[%emt 0:00:00]} Kb8 {[%emt 0:00:00]} 44. R1d6 {[%emt 0:00:00]} Rxa3 {[%emt 0:00:00]} 45. Rxc6 {[%emt 0:00:00]} Rb3 {[%emt 0:00:00]} 46. Rc8+ {[%emt 0:00:00]} Rxc8 {[%emt 0:00:00]} 47. bxc8=Q+ {[%emt 0:00:00]} Kxc8 {[%emt 0:00:00]} 48. Rf7 {[%emt 0:00:00]} Rb1 {[%emt 0:00:00]} 49. Rxf6 {[%emt 0:00:00]} Rg1+ {[%emt 0:00:00]} 50. Kh5 {[%emt 0:00:00]} g4 {[%emt 0:00:00]} 51. Rc6+ {[%emt 0:00:00]} Kd7 {[%emt 0:00:00]} 52. Rd6+ {[%emt 0:00:00]} Ke8 {[%emt 0:00:00]} 53. Kg6 {[%emt 0:00:00]} Rc1 {[%emt 0:00:00]} 54. f6 {[%emt 0:00:00]} Rxc5 {[%emt 0:00:00]} 55. Rd4 {[%emt 0:00:00]} 1-0

[Event "German Bundesliga 2023-24"]
[Site "Germany"]
[Date "2024.02.03"]
[Round "7.2"]
[White "Bartel, Mateusz"]
[Black "Donchenko, Alexander"]
[Result "1/2-1/2"]
[ECO "B53"]
[WhiteElo "2651"]
[BlackElo "2664"]
[Annotator "RC"]
[PlyCount "91"]
[EventDate "2023.10.20"]
[EventType "team-tourn"]
[EventCountry "GER"]
[SourceTitle "playchess.com"]
[Source "ChessBase"]
[SourceQuality "1"]
[TimeControl "40/6000+30:3000+30"]

1. e4 {[%emt 0:00:05]} c5 {[%emt 0:00:15]} 2. Nf3 {[%emt 0:00:07]} d6 {[%emt 0:00:06]} 3. Nc3 {[%emt 0:00:06]} Nf6 {[%emt 0:01:13]} 4. d4 {[%emt 0:00:07]} cxd4 {[%emt 0:00:15]} 5. Qxd4 {[%emt 0:00:07]} Nc6 {[%emt 0:01:35]} 6. Bb5 {[%emt 0:00:08]} Bd7 {[%emt 0:01:38]} 7. Bxc6 {[%emt 0:00:04]} Bxc6 {[%emt 0:00:07]} 8. Bg5 {[%emt 0:00:09]} e6 {[%emt 0:01:29]} 9. O-O-O {[%emt 0:00:08]} Be7 {[%emt 0:01:01]} 10. Rhe1 {[%emt 0:00:07]} O-O {[%emt 0:08:15]} 11. e5 {[%emt 0:00:06]} dxe5 {[%emt 0:00:51]} 12. Nxe5 {[%emt 0:00:08]} Qxd4 {[%emt 0:15:21]} 13. Rxd4 {[%emt 0:00:12]} Rfc8 {[%emt 0:00:06]} 14. Nxc6 {[%emt 0:00:11]} Rxc6 {[%emt 0:00:25]} 15. Ne4 {[%emt 0:00:12]} e5 {[%emt 0:09:26]} 16. Rd3 {[%emt 0:00:07]} Rac8 {[%emt 0:17:51]} 17. Re2 {[%emt 0:02:27]} a6 {[%emt 0:07:01]} 18. Bxf6 {[%emt 0:10:58]} Bxf6 {[%emt 0:00:08]} 19. Rd5 {[%emt 0:00:05]} h5 {[%emt 0:03:09]} 20. c3 {[%emt 0:07:05]} Kh7 {[%emt 0:06:59]} 21. Nxf6+ {[%emt 0:17:34]} gxf6 {[%emt 0:00:05]} 22. f4 {[%emt 0:00:03]} exf4 {[%emt 0:01:57]} 23. Rxh5+ {[%emt 0:00:45]} Kg6 {[%emt 0:00:13]} 24. Rd5 {[%emt 0:00:05]} Rc5 {[%emt 0:06:11]} 25. Rd3 {[%emt 0:06:03]} Rh5 {[%emt 0:03:55]} 26. h3 {[%emt 0:02:44]} Re5 {[%emt 0:02:27]} 27. Rf2 {[%emt 0:00:08]} Rc4 {[%emt 0:00:24]} 28. Rdf3 {[%emt 0:02:24]} Rg5 {[%emt 0:06:23]} 29. b3 {[%emt 0:07:30]} Re4 {[%emt 0:00:25]} 30. Kd2 {[%emt 0:00:08]} Rd5+ {[%emt 0:04:31]} 31. Kc2 {[%emt 0:00:41]} Rde5 {[%emt 0:00:43]} 32. c4 {[%emt 0:02:57]} Kg5 {[%emt 0:03:25]} 33. g3 {[%emt 0:08:53]} fxg3 {[%emt 0:01:41]} 34. Rxg3+ {[%emt 0:00:13]} Kh4 {[%emt 0:00:02]} 35. Rgf3 {[%emt 0:03:44]} Re2+ {[%emt 0:04:19]} 36. Rxe2 {[%emt 0:00:10]} Rxe2+ {[%emt 0:00:02]} 37. Kd3 {[%emt 0:00:05]} Re6 {[%emt 0:00:06]} 38. c5 {[%emt 0:00:30]} Kg5 {[%emt 0:01:40]} 39. Re3 {[%emt 0:11:07]} Rc6 {[%emt 0:01:16]} 40. b4 {[%emt 0:02:48]} Rc7 {[%emt 0:02:15]} 41. Rg3+ {[%emt 0:59:14]} Kh4 {[%emt 0:08:44]} 42. Rf3 {[%emt 0:00:00]} Kg5 {[%emt 0:00:11]} 43. Kc4 {[%emt 0:00:00]} f5 {[%emt 0:00:54]} 44. a4 {[%emt 0:00:00]} f4 {[%emt 0:07:34]} 45. b5 {[%emt 0:00:00]} axb5+ {[%emt 0:08:44]} 46. axb5 {[%emt 0:00:00]} 1/2-1/2

[Event "German Bundesliga 2023-24"]
[Site "Germany"]
[Date "2024.02.03"]
[Round "7.2"]
[White "Ragger, Markus"]
[Black "Bjerre, Jonas Buhl"]
[Result "1-0"]
[ECO "C80"]
[WhiteElo "2615"]
[BlackElo "2637"]
[Annotator "ChessBase"]
[PlyCount "103"]
[EventDate "2023.10.20"]
[EventType "team-tourn"]
[EventCountry "GER"]
[SourceTitle "playchess.com"]
[Source "ChessBase"]
[SourceQuality "1"]
[TimeControl "40/6000+30:3000+30"]

1. e4 {[%emt 0:00:02]} e5 {[%emt 0:00:15]} 2. Nf3 {[%emt 0:00:04]} Nc6 {[%emt 0:00:08]} 3. Bb5 {[%emt 0:00:05]} a6 {[%emt 0:00:34]} 4. Ba4 {[%emt 0:00:03]} Nf6 {[%emt 0:00:16]} 5. O-O {[%emt 0:00:11]} Nxe4 {[%emt 0:01:20]} 6. Re1 {[%emt 0:00:21]} Nc5 {[%emt 0:03:53]} 7. Bxc6 {[%emt 0:01:01]} dxc6 {[%emt 0:00:46]} 8. Nxe5 {[%emt 0:00:07]} Be7 {[%emt 0:03:03]} 9. d4 {[%emt 0:00:14]} Ne6 {[%emt 0:02:07]} 10. Be3 {[%emt 0:00:07]} O-O {[%emt 0:02:21]} 11. c4 {[%emt 0:00:15]} Bd6 {[%emt 0:10:49]} 12. f4 {[%emt 0:00:52]} f6 {[%emt 0:10:52]} 13. Nd3 {[%emt 0:00:26]} Re8 {[%emt 0:02:13]} 14. Nc3 {[%emt 0:18:34]} Nf8 {[%emt 0:05:04]} 15. c5 {[%emt 0:26:37]} Be7 {[%emt 0:00:08]} 16. Qb3+ {[%emt 0:00:04]} Kh8 {[%emt 0:04:33]} 17. Rad1 {[%emt 0:09:12]} Bg4 {[%emt 0:04:38]} 18. Rd2 {[%emt 0:00:21]} Qd7 {[%emt 0:02:31]} 19. h3 {[%emt 0:07:08]} Bf5 {[%emt 0:05:42]} 20. Qd1 {[%emt 0:05:17]} Rad8 {[%emt 0:02:49]} 21. Nf2 {[%emt 0:01:46]} Be6 {[%emt 0:02:26]} 22. Qh5 {[%emt 0:06:19]} Ng6 {[%emt 0:03:48]} 23. Red1 {[%emt 0:13:27]} Bf7 {[%emt 0:14:31]} 24. d5 {[%emt 0:01:19]} f5 {[%emt 0:03:43]} 25. d6 {[%emt 0:04:18]} Bf6 {[%emt 0:04:56]} 26. Qf3 {[%emt 0:00:08]} Bxc3 {[%emt 0:03:36]} 27. bxc3 {[%emt 0:00:06]} Bd5 {[%emt 0:00:17]} 28. Qg3 {[%emt 0:00:36]} cxd6 {[%emt 0:01:21]} 29. cxd6 {[%emt 0:00:54]} Re6 {[%emt 0:00:39]} 30. Nd3 {[%emt 0:01:18]} Qe8 {[%emt 0:07:25]} 31. Bb6 {[%emt 0:04:15]} Rdxd6 {[%emt 0:00:39]} 32. Ne5 {[%emt 0:00:17]} Nxe5 {[%emt 0:02:25]} 33. fxe5 {[%emt 0:00:05]} Rxe5 {[%emt 0:02:01]} 34. Bc7 {[%emt 0:01:35]} f4 {[%emt 0:00:47]} 35. Qf2 {[%emt 0:00:19]} Rg6 {[%emt 0:01:30]} 36. Bxe5 {[%emt 0:01:46]} Qxe5 {[%emt 0:00:09]} 37. Re2 {[%emt 0:03:46]} Qb8 {[%emt 0:01:38]} 38. Rde1 {[%emt 0:00:06]} Bg8 {[%emt 0:00:17]} 39. Re8 {[%emt 0:01:44]} Qd6 {[%emt 0:00:49]} 40. Qd4 {[%emt 0:01:43]} Qxd4+ {[%emt 0:02:45]} 41. cxd4 {[%emt 0:50:09]} f3 {[%emt 0:05:48]} 42. Rb8 {[%emt 0:00:00]} Rxg2+ {[%emt 0:00:59]} 43. Kf1 {[%emt 0:00:00]} Re2 {[%emt 0:01:15]} 44. a4 {[%emt 0:00:00]} Rxe1+ {[%emt 0:06:57]} 45. Kxe1 {[%emt 0:00:00]} g5 {[%emt 0:03:44]} 46. Kf2 {[%emt 0:00:00]} Kg7 {[%emt 0:02:23]} 47. Rxb7+ {[%emt 0:00:00]} Kf6 {[%emt 0:00:59]} 48. Rb6 {[%emt 0:00:00]} Bd5 {[%emt 0:00:59]} 49. Rxa6 {[%emt 0:00:00]} Kf5 {[%emt 0:02:28]} 50. a5 {[%emt 0:00:00]} Ke4 {[%emt 0:00:12]} 51. Ra7 {[%emt 0:00:00]} Kxd4 {[%emt 0:00:15]} 52. a6 {[%emt 0:00:00]} 1-0